[Event "2nd Serbia Open Masters 2022"]
[Site "Novi Sad"]
[Date "2022.06.28"]
[Round "1.5"]
[White "Jumabayev, Rinat"]
[Black "Ozcan, Kaan"]
[Result "1-0"]
[ECO "E09"]
[WhiteElo "2628"]
[BlackElo "2329"]
[Annotator "TA"]
[PlyCount "63"]
[EventDate "2022.06.28"]
[EventType "swiss"]
[EventCountry "SRB"]
[SourceTitle "playchess.com"]
[Source "ChessBase"]
[SourceQuality "1"]
[TimeControl "40/5400+30:900+30"]

{[%evp 25,63,34,42,38,25,33,54,19,37,39,37,24,39,33,60,47,92,71,103,66,152,145,224,214,279,236,216,200,304,200,576,532,556,525,577,572,619,609,833,803]} 1. Nf3 {[%emt 0:00:02]} d5 {[%emt 0:00:19]} 2. g3 {[%emt 0:00:08]} Nf6 {[%emt 0:00:28]} 3. Bg2 {[%emt 0:00:22]} c6 {[%emt 0:01:53]} 4. c4 {[%emt 0:00:44]} e6 {[%emt 0:01:42]} 5. O-O {[%emt 0:00:16]} Be7 {[%emt 0:02:56]} 6. d4 {[%emt 0:00:45]} O-O {[%emt 0:02:21]} 7. Qc2 {[%emt 1:31:43]} Nbd7 {[%emt 0:02:59]} 8. Nbd2 {[%emt 1:31:08]} b6 {[%emt 0:17:50]} 9. e4 {[%emt 0:05:38]} dxe4 {[%emt 0:08:08]} 10. Nxe4 {[%emt 0:00:57]} Nxe4 {[%emt 0:06:48]} 11. Qxe4 {[%emt 0:00:30]} Bb7 {[%emt 0:04:31]} 12. Rd1 {[%emt 0:00:33]} Nf6 {[%emt 0:46:35]} 13. Qc2 {[%emt 0:00:15]} Qc8 {[%emt 0:02:39]} 14. c5 {[%emt 0:01:23] E09: Closed Catalan: Main Line: 7 Qc2 c6 8 Nbd2.} Rd8 {[%emt 0:04:40]} 15. Be3 $5 {[%emt 0:09:00][%mdl 4] Exploring less charted territory.} (15. Bf4 {seems wilder.} h6 16. Ne5 Nd5 17. Bd2) 15... Nd5 {[%emt 0:04:05]} 16. Bd2 {[%emt 0:00:54] White is slightly better.} bxc5 {[%emt 0:03:17]} 17. dxc5 {[%emt 0:00:23] [#]} a5 $146 {[%emt 0:02:51]} ({Predecessor:} 17... Ba6 18. b4 Bf6 19. Rac1 Rb8 20. a3 Be2 21. Re1 Qa6 22. Qb3 h6 23. Bf1 Bxf1 24. Rxf1 {½-½ (60) Szymanski,P (2249)-Janik,I (2387) Jastrzebia Gora 2015}) 18. a3 {[%emt 0:00:36] Against Nb4} a4 {[%emt 0:03:46]} 19. Re1 {[%emt 0:01:38]} Qb8 {[%emt 0:06:11]} 20. Rac1 {[%emt 0:02:33]} Qa7 {[%emt 0:03:05]} 21. h4 {[%emt 0:04:25][%cal Bh2h4,Bh4g5][%mdl 32] White is more active.} Bf6 {[%emt 0:03:47]} 22. Ng5 {[%emt 0:01:57]} Bxg5 {[%emt 0:03:09]} (22... g6 $14) 23. hxg5 $16 {[%emt 0:00:15]} ({Much less strong is} 23. Bxg5 $6 f6 $11) 23... Ne7 {[%emt 0:03:08]} (23... g6 $16 24. Re4 Bc8) 24. Bf4 $18 {[%emt 0:05:50]} Nf5 {[%emt 0:04:40]} 25. Be5 {[%emt 0:03:27]} Qa5 {[%emt 0:02:27]} 26. Red1 {[%emt 0:00:48] Inhibits Rd7.} Rac8 {[%emt 0:01:29]} (26... Qb5 $142 27. Be4 Ba6) 27. Be4 {[%emt 0:00:25] [#] g4 is the strong threat.} Ba6 $2 {[%emt 0:00:44]} (27... Rd5 {is a better chance.}) 28. g4 {[%emt 0:01:15] White is clearly winning.} Nh4 {[%emt 0:00:30]} 29. Bxh7+ {[%emt 0:00:46] This bishop pair is nice.} Kf8 {[%emt 0:00:18] Threatens to win with ...Nf3+.} 30. Be4 {[%emt 0:00:18] Prevents Nf3+.} Rd5 {[%emt 0:00:42]} 31. Bg3 {[%emt 0:00:36]} Rxd1+ {[%emt 0:00:32]} 32. Rxd1 {[%emt 0:00:11] Weighted Error Value: White=0.15 (very precise) /Black=0.58} 1-0

[Event "2nd Serbia Open Masters 2022"]
[Site "Novi Sad"]
[Date "2022.06.28"]
[Round "1.6"]
[White "Hristodoulou, Panagiotis"]
[Black "Piorun, Kacper"]
[Result "1-0"]
[ECO "B06"]
[WhiteElo "2328"]
[BlackElo "2635"]
[Annotator "TA"]
[PlyCount "103"]
[EventDate "2022.06.28"]
[EventType "swiss"]
[EventCountry "SRB"]
[SourceTitle "playchess.com"]
[Source "ChessBase"]
[SourceQuality "1"]
[TimeControl "40/5400+30:900+30"]

{[%evp 9,103,46,46,45,49,25,75,56,55,52,58,58,88,45,64,66,66,58,60,62,79,65,101,86,125,83,118,122,157,133,170,117,132,95,112,0,133,112,195,224,225,181,210,218,212,178,216,210,197,201,440,440,518,494,564,471,470,445,653,633,773,708,579,220,686,25,8,22,13,16,14,20,112,8,8,0,101,128,1574,1465,1314,1126,29967,29968,29964,29968,29966,29963,29949,29944,9954,6625,6589,5777,29984,29985]} 1. e4 {[%emt 0:00:07]} g6 {[%emt 0:00:15]} 2. d4 {[%emt 0:00:21]} Bg7 {[%emt 0:00:05]} 3. Nf3 {[%emt 0:00:18]} c6 {[%emt 0:00:52]} 4. h3 {[%emt 0:02:13]} d6 {[%emt 0:00:28]} 5. Bd3 {[%emt 0:07:35]} Nf6 {[%emt 0:00:08]} 6. O-O {[%emt 0:00:17] B06: Modern Defence.} O-O {[%emt 0:00:13]} 7. Re1 {[%emt 0:00:08]} Na6 {[%emt 0:01:15]} (7... Nbd7 $11) 8. c3 {[%emt 0:01:32] White is better.} (8. Bxa6 $5 bxa6 9. Nc3 $14) 8... Nc7 {[%emt 0:00:41]} 9. Nbd2 {[%emt 0:06:13][%cal Bb1d2,Bd2c4,Bc4e3][%mdl 32] [#]} Nd7 $146 {[%emt 0:00:11][%cal Bf6d7,Bd7f8,Bf8e6][%mdl 32]} ({Predecessor:} 9... Nh5 10. Nf1 e5 11. Bg5 f6 12. Bd2 Ne6 13. Qc2 Nef4 14. Rad1 Qe7 15. Bc4+ Kh8 16. Ng3 b5 17. Nxh5 Nxh5 18. Bb3 a6 19. g4 {1-0 (19) Peng,D (2287)-Gareyev,T (2606) ICC INT 2020}) 10. Nc4 {[%emt 0:02:58]} Re8 {[%emt 0:17:31]} 11. e5 {[%emt 0:16:24]} Nf8 {[%emt 0:05:54]} 12. Bf4 {[%emt 0:10:42][%cal Re5d6]} b5 {[%emt 0:08:29]} 13. Ne3 {[%emt 0:07:44] White is much more active.} (13. exd6 Nd5 14. dxe7 Rxe7 15. Rxe7 Nxf4 $11) 13... Nfe6 {[%emt 0:01:46]} 14. Bg3 {[%emt 0:01:12]} Bb7 {[%emt 0:00:18]} 15. Be4 {[%emt 0:05:54]} Rb8 {[%emt 0:10:26]} 16. a4 {[%emt 0:08:23]} Qd7 {[%emt 0:06:18]} 17. b4 {[%emt 0:06:04]} bxa4 {[%emt 0:11:10]} 18. Qxa4 {[%emt 0:00:46] aiming for d5.} Nb5 {[%emt 0:00:05]} 19. Qc2 {[%emt 0:04:06]} Rbc8 {[%emt 0:02:55]} 20. Rad1 {[%emt 0:05:50]} ({Better is} 20. h4 $18) 20... Red8 {[%emt 0:03:19]} 21. Bh4 {[%emt 0:04:28]} Rf8 {[%emt 0:04:01]} 22. Bg3 {[%emt 0:03:24]} ({White should play} 22. Bd3 $16) 22... a6 {[%emt 0:00:14]} (22... Rfd8 $1 $11) 23. h4 {[%emt 0:00:39]} f5 {[%emt 0:01:51]} (23... a5 $16) 24. exf6 $1 $18 {[%emt 0:04:15]} exf6 {[%emt 0:02:15]} 25. c4 {[%emt 0:00:23]} d5 {[%emt 0:07:26]} 26. Bxg6 {[%emt 0:00:16]} (26. cxb5 cxb5 27. Qb3 dxe4 $15) 26... hxg6 {[%emt 0:00:03]} 27. cxb5 {[%emt 0:00:06]} f5 {[%emt 0:00:02]} 28. bxa6 {[%emt 0:01:03]} Bxa6 {[%emt 0:00:05]} 29. Be5 {[%emt 0:00:39]} Bh6 $2 {[%emt 0:00:03]} (29... Bxe5 30. Nxe5 Qe8) 30. h5 {[%emt 0:00:34]} Ng5 {[%emt 0:03:08]} 31. Nh4 {[%emt 0:00:44]} Rce8 {[%emt 0:00:21]} 32. hxg6 {[%emt 0:00:24][%cal Re3f5]} Ne4 {[%emt 0:00:38]} 33. f3 {[%emt 0:00:40]} Rxe5 {[%emt 0:03:05]} (33... f4 $142 34. Nxd5 cxd5) 34. dxe5 {[%emt 0:00:07]} Bxe3+ {[%emt 0:00:16]} 35. Rxe3 {[%emt 0:00:13]} Qa7 {[%emt 0:00:02]} 36. fxe4 $2 {[%emt 0:01:14]} f4 $2 {[%emt 0:05:42] [#]} (36... Qxe3+ 37. Qf2 Qxf2+ 38. Kxf2 fxe4+ 39. Ke3 Bc8) 37. Qc5 $2 {[%emt 0:00:30]} (37. Qxc6 $1 $18 fxe3 38. Qe6+ Kg7 39. Ra1 (39. Nf5+ Rxf5 40. exf5 e2+ 41. Kh2 exd1=R $11) 39... e2+ 40. Kh2) 37... Qxc5 $11 {[%emt 0:00:04]} 38. bxc5 {[%emt 0:00:01] Really sharp!} fxe3 {[%emt 0:00:05][%cal Bf4e3,Be3e2][%mdl 4128] Endgame KRB-KRN} 39. Nf5 {[%emt 0:00:57]} (39. exd5 $2 e2 40. Re1 Rf1+ 41. Rxf1 exf1=Q+ $19) 39... e2 $1 {[%emt 0:00:46]} 40. Ra1 {[%emt 0:00:00]} Bd3 {[%emt 0:00:00]} (40... dxe4 $11 {keeps the balance.} 41. g4 Rd8) 41. g4 {[%emt 0:09:09]} (41. Ne7+ Kg7 42. Nf5+ Kxg6 $17) (41. g7 $16 Rb8 42. Kf2 (42. Ne7+ Kxg7 43. Nf5+ Kg6 $15) 42... Bxe4 43. Ne7+ Kxg7 44. Nxc6) 41... Bxe4 {[%emt 0:05:22]} 42. Re1 {[%emt 0:03:42]} Bd3 {[%emt 0:02:59] [#]} (42... Bxf5 $11 43. gxf5 Rxf5 44. Rxe2 Rg5+ 45. Kf2 Rxg6) 43. e6 $1 $16 {[%emt 0:01:11][%cal Be5e6,Be6e7][%mdl 32]} Rf6 $2 {[%emt 0:00:35][%mdl 8192] A mistake that costs the game.} (43... Bxf5 $16 44. gxf5 Rxf5 45. Rxe2 Rg5+ 46. Kf2 Kf8) 44. e7 $18 {[%emt 0:00:08]} ({Don't blunder} 44. Ra1 $2 Bxf5 45. gxf5 Rxf5 $19) 44... Re6 {[%emt 0:00:32]} 45. Kf2 {[%emt 0:00:33] White wants to mate with Ra1.} Re5 {[%emt 0:00:42]} 46. Ra1 {[%emt 0:02:23][%cal Ra1a8]} Bxf5 {[%emt 0:00:06]} 47. gxf5 {[%emt 0:00:22] KR-KR} Kg7 {[%emt 0:01:37] [#]} 48. Re1 $1 {[%emt 0:00:47]} (48. Rh1 Rxf5+ 49. Kxe2 Re5+ 50. Kd3 Rxe7 $11) 48... Rxe7 {[%emt 0:01:39]} 49. Rxe2 {[%emt 0:00:03]} Ra7 {[%emt 0:00:11]} 50. Re6 {[%emt 0:00:18]} Kh6 {[%emt 0:00:38]} 51. Rxc6 {[%emt 0:01:01]} Kg5 {[%emt 0:00:02]} 52. g7 {[%emt 0:00:08] Weighted Error Value: White=0.40/Black=0.84} 1-0

[Event "2nd Serbia Open Masters 2022"]
[Site "Novi Sad"]
[Date "2022.06.28"]
[Round "1.7"]
[White "Indjic, Aleksandar"]
[Black "Saravanan, V.."]
[Result "1/2-1/2"]
[ECO "E61"]
[WhiteElo "2621"]
[BlackElo "2324"]
[Annotator "TA"]
[PlyCount "75"]
[EventDate "2022.06.28"]
[EventType "swiss"]
[EventCountry "SRB"]
[SourceTitle "playchess.com"]
[Source "ChessBase"]
[SourceQuality "1"]
[TimeControl "40/5400+30:900+30"]

{[%evp 9,75,22,21,25,51,55,54,42,54,-8,-17,-13,31,35,29,30,33,18,13,16,49,31,76,5,17,21,42,33,49,50,112,126,95,99,139,108,175,66,81,51,45,26,29,20,26,0,25,0,0,-18,27,26,47,31,54,-77,-81,-68,-58,-53,-55,-62,-73,-83,0,-54,0,-99]} 1. d4 {[%emt 0:00:05]} Nf6 {[%emt 0:00:12]} 2. c4 {[%emt 0:00:07]} g6 {[%emt 0:00:08]} 3. g3 {[%emt 0:00:04]} Bg7 {[%emt 0:00:12]} 4. Bg2 {[%emt 0:00:08]} O-O {[%emt 0:00:57]} 5. Nc3 {[%emt 1:32:36]} c5 {[%emt 0:00:16]} 6. dxc5 {[%emt 0:00:00] E61: King's Indian: Early deviations for White, including Smyslov System.} Na6 {[%emt 0:03:13]} 7. e4 {[%emt 0:00:00][%cal Be2e4,Be4e5][%mdl 32]} Nxc5 {[%emt 0:00:30]} 8. e5 {[%emt 0:00:00] White is slightly better.} Ne8 {[%emt 0:00:31] [#]} 9. Nf3 $146 {[%emt 0:00:00]} (9. Be3 $1 $14 Qa5 10. Nf3) ({Predecessor:} 9. Be3 Ne6 10. f4 d6 11. Nf3 Bd7 12. O-O Bc6 13. Nd5 N6c7 14. Qb3 dxe5 15. Nxe5 Bxd5 16. cxd5 {1-0 (53) Vakhidov,J (2534)-Ponkratov,P (2629) Krasnaya Polyana 2021}) 9... d6 $11 {[%emt 0:01:08]} 10. Be3 {[%emt 0:00:00] Black must now prevent Bxc5.} Be6 {[%emt 0:06:40]} 11. Bxc5 {[%emt 0:00:00]} dxc5 {[%emt 0:00:10]} 12. Qe2 {[%emt 0:00:00]} Nc7 {[%emt 0:06:11]} 13. h3 {[%emt 0:00:00]} Qc8 {[%emt 0:04:25]} 14. Ng5 {[%emt 0:00:00]} Bd7 {[%emt 0:00:06]} 15. f4 {[%emt 0:00:00][%cal Bf2f4,Bf4e5][%mdl 32]} f6 {[%emt 0:11:35] [#]} 16. Nf3 {[%emt 0:00:00] Pair of Knights!} ({Better is} 16. exf6 $1 $16 exf6 17. Nge4) 16... Bc6 {[%emt 0:04:28]} 17. O-O-O {[%emt 0:00:00]} Bxf3 {[%emt 0:04:16]} 18. Bxf3 {[%emt 0:00:00][%cal Oe5e6] e6! is the strong threat.} fxe5 {[%emt 0:00:23]} 19. Bg4 {[%emt 0:00:00]} e6 {[%emt 0:05:03]} (19... Qb8 $14) 20. fxe5 $16 {[%emt 0:00:00] 0x0.001e6abd1677dp-1022s more active pieces.} Qe8 {[%emt 0:03:27] [#]} 21. h4 $1 {[%emt 0:00:00]} Qf7 {[%emt 0:07:51]} 22. Rhe1 {[%emt 0:00:00]} a6 {[%emt 0:03:27]} (22... Rae8 $16) 23. Ne4 {[%emt 0:00:00]} ({White should try} 23. Na4 $18) 23... Qe7 $14 {[%emt 0:00:37]} 24. Nd6 {[%emt 0:00:00]} b5 $1 {[%emt 0:00:09]} 25. Qe3 {[%emt 0:00:00]} bxc4 {[%emt 0:03:56]} 26. Nxc4 {[%emt 0:10:30]} Nb5 {[%emt 0:00:44]} ({Less strong is} 26... Nd5 27. Qg5 Qxg5+ 28. hxg5 $16) 27. Qg5 {[%emt 0:00:00]} Ra7 {[%emt 0:02:15]} 28. Rd3 {[%emt 0:00:00]} Nd4 {[%emt 0:07:10]} 29. Nd6 {[%emt 0:00:00] Inhibits Qb7.} Nf5 {[%emt 0:03:59]} 30. Bxf5 {[%emt 0:00:00]} exf5 {[%emt 0:00:40]} 31. Qf4 {[%emt 0:00:00]} Qe6 {[%emt 0:01:30]} 32. Nc4 {[%emt 0:00:00] [#]} (32. Qc4 $14 {stays ahead.} Qxc4+ 33. Nxc4) 32... Bh6 $1 $17 {[%emt 0:03:11]} 33. Qxh6 {[%emt 0:00:00]} Qxc4+ {[%emt 0:00:06]} 34. Rc3 {[%emt 0:00:00]} Qxa2 {[%emt 0:00:18] aiming for ...Rb8.} 35. Ra3 {[%emt 0:00:00]} Qc4+ {[%emt 0:02:30]} 36. Rc3 {[%emt 0:00:00]} Qa2 {[%emt 0:02:18]} 37. Ra3 {[%emt 0:00:00]} Qc4+ {[%emt 0:00:20]} 38. Rc3 {[%emt 0:00:00] Weighted Error Value: White=0.22 (precise) /Black=0.17 (very precise)} 1/2-1/2

[Event "2nd Serbia Open Masters 2022"]
[Site "Novi Sad"]
[Date "2022.06.28"]
[Round "1.8"]
[White "Lu, Miaoyi"]
[Black "Motylev, Alexander"]
[Result "0-1"]
[ECO "D00"]
[WhiteElo "2279"]
[BlackElo "2633"]
[Annotator "TA"]
[PlyCount "104"]
[EventDate "2022.06.28"]
[EventType "swiss"]
[EventCountry "SRB"]
[SourceTitle "playchess.com"]
[Source "ChessBase"]
[SourceQuality "1"]
[TimeControl "40/5400+30:900+30"]

{[%evp 9,104,0,2,-3,2,-32,-30,-35,-25,-41,-19,-21,0,0,144,115,143,149,95,-116,-100,-131,-129,-180,-157,-208,-203,-225,-232,-222,-210,-219,-236,-279,-262,-343,-346,-404,-322,-345,-345,-425,-323,-324,-308,-301,-295,-283,-282,-283,-282,-282,-262,-292,-148,-164,-115,-119,-112,-98,-81,-329,-331,-406,-367,-388,-342,-352,-343,-337,-320,-335,-331,-540,-325,-590,-586,-583,-569,-694,-706,-824,-808,-888,-799,-798,-741,-1065,-1054,-10287,-9276,-6541,-6083,-5962,-4823,-29960,-6182]} 1. d4 {[%emt 0:00:02]} d5 {[%emt 0:00:17]} 2. Nc3 {[%emt 0:00:13]} Nf6 {[%emt 0:00:47]} 3. Bf4 {[%emt 0:00:03]} e6 {[%emt 0:00:53]} 4. Nb5 {[%emt 0:00:18]} Bb4+ {[%emt 0:02:08]} 5. c3 {[%emt 0:00:29]} Ba5 {[%emt 0:00:06]} 6. e3 {[%emt 0:11:29] D00: 1 d4 d5: Unusual lines.} O-O {[%emt 0:03:06] [#]} 7. h4 $146 {[%emt 0:08:06]} ({Predecessor:} 7. h3 c6 8. Na3 Bc7 9. Nf3 Nbd7 10. Be2 Re8 11. Bxc7 Qxc7 12. c4 Qa5+ 13. Qd2 Qxd2+ 14. Nxd2 {1-0 (49) Niemann,H (2645)-Predke,A (2682) Warsaw 2021}) 7... a6 {[%emt 0:12:44]} 8. Na3 {[%emt 0:00:08] Black has an edge.} c5 {[%emt 0:00:31]} 9. dxc5 {[%emt 0:05:32]} Nc6 {[%emt 0:00:55]} 10. Nf3 {[%emt 0:16:47]} Ne4 {[%emt 0:01:40]} 11. Bd3 {[%emt 0:04:12]} Nxc5 {[%emt 0:29:15] [#]} (11... f5 $11 {remains equal.}) 12. Bxh7+ $1 $16 {[%emt 0:05:34][%mdl 512]} Kxh7 {[%emt 0:02:07]} 13. Ng5+ $1 {[%emt 0:00:07]} Kg6 {[%emt 0:00:26][%cal Bh7g6,Bg6f6,Bf6f7][%mdl 32]} (13... Kg8 {gets mated.} 14. Qh5 Re8 15. Bd6 $1 {[%mdl 512]} Bxc3+ 16. Kf1 Qxd6 17. Qxf7+ Kh8 18. Qxe8+) 14. Qb1+ $2 {[%emt 0:21:32]} (14. h5+ $1 $16 {stays on course.} Kf6 15. Nh7+ Ke7 16. Nxf8 Kxf8 17. h6) 14... f5 $1 $17 {[%emt 0:05:07]} 15. h5+ {[%emt 0:07:28]} Kf6 {[%emt 0:01:46]} 16. Nh7+ {[%emt 0:01:51]} (16. b4 $17 Rh8 17. Kf1 (17. bxa5 $2 Qxa5 18. Nc2 Qxc3+ 19. Kf1 e5 $19)) 16... Kf7 $19 {[%emt 0:00:18]} 17. Nxf8 {[%emt 0:01:15]} (17. Bg5 $17 Qd6 18. Nxf8 Qxf8 19. h6) 17... Qxf8 {[%emt 0:03:26]} ({Stronger than} 17... Kxf8 18. b4 $11) 18. h6 {[%emt 0:04:56]} e5 {[%emt 0:11:43]} 19. h7 {[%emt 0:06:39] [#]} Qh8 $1 {[%emt 0:01:50]} 20. Bg3 {[%emt 0:00:04]} Ne4 {[%emt 0:02:52]} 21. Qd1 {[%emt 0:01:35][%cal Og3e5] [#]} Be6 $1 {[%emt 0:01:19] White must now prevent ...d4.} 22. Nc2 {[%emt 0:01:19]} g6 {[%emt 0:01:23] Against Qh5} 23. Qd3 {[%emt 0:01:07]} Qg7 {[%emt 0:01:36]} 24. O-O-O {[%emt 0:00:26]} Rh8 {[%emt 0:01:47]} 25. Ne1 {[%emt 0:00:46]} Nxg3 {[%emt 0:01:00]} 26. fxg3 {[%emt 0:00:03]} e4 {[%emt 0:00:27] Chess con chili.} 27. Qd2 {[%emt 0:00:46]} Bd8 {[%emt 0:05:27]} 28. Nc2 {[%emt 0:00:25]} Bf6 {[%emt 0:00:06]} 29. Nd4 {[%emt 0:00:46]} Nxd4 {[%emt 0:03:56]} 30. cxd4 {[%emt 0:00:21]} Rxh7 {[%emt 0:00:42]} 31. Kb1 {[%emt 0:00:34]} Bd7 {[%emt 0:01:11]} (31... g5 $19 32. a3 f4 33. exf4 Rxh1 34. Rxh1 Bxd4) 32. Qa5 $17 {[%emt 0:00:38]} Bc6 {[%emt 0:01:57]} (32... Ke6 $19 {Strongly threatening ...Bc6.} 33. Qc7 Rxh1 34. Rxh1 Bc6) 33. Qc7+ {[%emt 0:00:04]} Be7 {[%emt 0:00:05]} 34. g4 {[%emt 0:00:32]} Qh8 {[%emt 0:00:12]} 35. Rhf1 {[%emt 0:00:40] This move loses the game for White.} (35. Rxh7+ $17 {only move.} Qxh7 36. gxf5) 35... Qd8 $19 {[%emt 0:00:29]} 36. Qg3 {[%emt 0:00:50]} Bd6 {[%emt 0:00:33]} 37. Qf2 {[%emt 0:00:41]} Qh4 {[%emt 0:01:06]} 38. gxf5 {[%emt 0:00:19]} Qxf2 {[%emt 0:00:09]} 39. fxg6+ {[%emt 0:00:20]} Kxg6 {[%emt 0:00:25]} 40. Rxf2 {[%emt 0:00:00]} Bb5 {[%emt 0:00:00]} 41. g4 $2 {[%emt 0:04:11]} (41. a3) 41... Bd7 {[%emt 0:08:31] aiming for ...Rh3.} 42. Rg1 $2 {[%emt 0:08:57]} (42. g5 {keeps fighting.} Be7 43. Rg2) 42... Rh3 {[%emt 0:04:12]} 43. Rgf1 {[%emt 0:00:36] And now Rf6+ would win.} Be7 {[%emt 0:00:14] Against Rf6+} 44. Rc1 {[%emt 0:02:29]} Bg5 {[%emt 0:02:19]} 45. Rf8 {[%emt 0:01:39]} Bxe3 {[%emt 0:01:15]} 46. Rcf1 {[%emt 0:00:16]} Bxd4 {[%emt 0:00:39] Threatens to win with ...Bb5.} 47. Rg8+ {[%emt 0:01:02]} Bg7 {[%emt 0:00:35]} 48. g5 {[%emt 0:00:15]} Bb5 {[%emt 0:01:54]} 49. Rc1 {[%emt 0:00:37]} Bd3+ {[%emt 0:00:23]} 50. Ka1 {[%emt 0:00:02]} Rh2 {[%emt 0:00:20]} 51. a4 {[%emt 0:00:56]} Kh7 {[%emt 0:01:35]} 52. Rcc8 {[%emt 0:00:11]} e3 {[%emt 0:01:22] Weighted Error Value: White=0.77/Black=0.25 (precise)} 0-1